[Event "Late-Titled-Tuesday-Blitz-April-16-2024"]
[Site "Chess.com"]
[Date "2024.04.16"]
[Round "4"]
[White "Supelyel"]
[Black "nindjaxx8"]
[Result "0-1"]
[WhiteElo "2438"]
[BlackElo "2674"]
[TimeControl "180+1"]
[EndTime "14:38:44 PDT"]
[Termination "nindjaxx8 won by checkmate"]

1. c4 {[%clk 0:03:00.9]} 1... e6 {[%clk 0:02:59.8]} 2. Nc3 {[%clk 0:02:53.5]}
2... d5 {[%clk 0:03:00.7]} 3. cxd5 {[%clk 0:02:53.8]} 3... exd5 {[%clk 0:03:00]}
4. d4 {[%clk 0:02:54.5]} 4... Nf6 {[%clk 0:03:00.5]} 5. Bg5 {[%clk 0:02:54.7]}
5... Be7 {[%clk 0:03:01]} 6. Bxf6 {[%clk 0:02:54.9]} 6... Bxf6 {[%clk
0:03:01.1]} 7. Nf3 {[%clk 0:02:54.2]} 7... O-O {[%clk 0:03:01.7]} 8. e3 {[%clk
0:02:54.3]} 8... c6 {[%clk 0:02:52.9]} 9. Bd3 {[%clk 0:02:54.1]} 9... Bg4 {[%clk
0:02:48.6]} 10. Qc2 {[%clk 0:02:54.3]} 10... h6 {[%clk 0:02:47.8]} 11. h3 {[%clk
0:02:53.6]} 11... Be6 {[%clk 0:02:47.2]} 12. O-O-O {[%clk 0:02:50.8]} 12... Nd7
{[%clk 0:02:47.5]} 13. g4 {[%clk 0:02:50.8]} 13... Rc8 {[%clk 0:02:48]} 14. Rdg1
{[%clk 0:02:49.4]} 14... c5 {[%clk 0:02:47.4]} 15. h4 {[%clk 0:02:47.7]} 15...
cxd4 {[%clk 0:02:47.8]} 16. exd4 {[%clk 0:02:47.2]} 16... Qb6 {[%clk 0:02:47.9]}
17. g5 {[%clk 0:02:41.3]} 17... Bxd4 {[%clk 0:02:40.2]} 18. gxh6 {[%clk
0:02:41.5]} 18... g6 {[%clk 0:02:31]} 19. Nxd4 {[%clk 0:02:11]} 19... Qxd4
{[%clk 0:02:30.1]} 20. Bxg6 {[%clk 0:01:16.3]} 20... Kh8 {[%clk 0:02:19.4]} 21.
Bd3 {[%clk 0:01:01.6]} 21... Ne5 {[%clk 0:02:03.9]} 22. Bf5 {[%clk 0:00:44.7]}
22... Qf4+ {[%clk 0:01:53.3]} 23. Qd2 {[%clk 0:00:43]} 23... Qxd2+ {[%clk
0:01:39.7]} 24. Kxd2 {[%clk 0:00:42.6]} 24... Bxf5 {[%clk 0:01:40.1]} 25. Ke3
{[%clk 0:00:35.1]} 25... Bh7 {[%clk 0:01:30.3]} 26. Nxd5 {[%clk 0:00:30.7]}
26... Nc4+ {[%clk 0:01:18.5]} 27. Kf4 {[%clk 0:00:28.7]} 27... Nxb2 {[%clk
0:01:14.5]} 28. Rg7 {[%clk 0:00:21.5]} 28... Rc6 {[%clk 0:01:13.6]} 29. Rhg1
{[%clk 0:00:19.7]} 29... Nd3+ {[%clk 0:01:13]} 30. Ke3 {[%clk 0:00:16.8]} 30...
Re6+ {[%clk 0:01:12.7]} 31. Kd4 {[%clk 0:00:17.1]} 31... Ne5 {[%clk 0:01:12]}
32. Nc7 {[%clk 0:00:14.8]} 32... Nf3+ {[%clk 0:01:11.4]} 33. Kd5 {[%clk
0:00:12.9]} 33... Nxg1 {[%clk 0:01:11.7]} 34. Nxe6 {[%clk 0:00:12.8]} 34...
fxe6+ {[%clk 0:01:12.6]} 35. Kxe6 {[%clk 0:00:13.6]} 35... Nf3 {[%clk
0:01:12.8]} 36. Rxb7 {[%clk 0:00:13.7]} 36... Nxh4 {[%clk 0:01:11.5]} 37. Rxa7
{[%clk 0:00:13.9]} 37... Rxf2 {[%clk 0:01:11.7]} 38. a3 {[%clk 0:00:13.9]} 38...
Bg8+ {[%clk 0:01:11.1]} 39. Ke5 {[%clk 0:00:13.7]} 39... Ng6+ {[%clk 0:01:10.8]}
40. Kd6 {[%clk 0:00:13.9]} 40... Rf6+ {[%clk 0:01:06.1]} 41. Kc5 {[%clk
0:00:13.9]} 41... Nf4 {[%clk 0:01:00.3]} 42. a4 {[%clk 0:00:13.6]} 42... Rxh6
{[%clk 0:00:59.5]} 43. a5 {[%clk 0:00:13.6]} 43... Rh5+ {[%clk 0:01:00.1]} 44.
Kd4 {[%clk 0:00:13.4]} 44... Ne6+ {[%clk 0:00:59.8]} 45. Ke4 {[%clk 0:00:13.9]}
45... Nc5+ {[%clk 0:00:59.7]} 46. Kf4 {[%clk 0:00:14.6]} 46... Rh6 {[%clk
0:00:59.1]} 47. Ra8 {[%clk 0:00:14.5]} 47... Ra6 {[%clk 0:00:58.3]} 48. Rc8
{[%clk 0:00:15]} 48... Rxa5 {[%clk 0:00:58.4]} 49. Kg5 {[%clk 0:00:14.9]} 49...
Ne6+ {[%clk 0:00:56.8]} 50. Kh6 {[%clk 0:00:15.3]} 50... Ng7 {[%clk 0:00:50.8]}
51. Rc6 {[%clk 0:00:14.5]} 51... Re5 {[%clk 0:00:41.7]} 52. Rc8 {[%clk
0:00:13.1]} 52... Nf5+ {[%clk 0:00:40.2]} 53. Kg5 {[%clk 0:00:13.5]} 53... Ne7+
{[%clk 0:00:39]} 54. Kf4 {[%clk 0:00:14.2]} 54... Re1 {[%clk 0:00:26.3]} 55. Ra8
{[%clk 0:00:13.1]} 55... Kg7 {[%clk 0:00:26.6]} 56. Ra7 {[%clk 0:00:13.1]} 56...
Bd5 {[%clk 0:00:26.5]} 57. Ra5 {[%clk 0:00:11.2]} 57... Kf6 {[%clk 0:00:26.5]}
58. Ra6+ {[%clk 0:00:11.1]} 58... Bc6 {[%clk 0:00:24.2]} 59. Rb6 {[%clk
0:00:11.4]} 59... Re4+ {[%clk 0:00:24.3]} 60. Kg3 {[%clk 0:00:11.7]} 60... Nf5+
{[%clk 0:00:23.4]} 61. Kg2 {[%clk 0:00:11.4]} 61... Nd4 {[%clk 0:00:21.2]} 62.
Kg3 {[%clk 0:00:11]} 62... Kf5 {[%clk 0:00:20.3]} 63. Rb8 {[%clk 0:00:10.8]}
63... Rg4+ {[%clk 0:00:20.6]} 64. Kf2 {[%clk 0:00:11.1]} 64... Rg2+ {[%clk
0:00:20]} 65. Ke3 {[%clk 0:00:11.5]} 65... Ne6 {[%clk 0:00:18.9]} 66. Rh8 {[%clk
0:00:10.5]} 66... Rg3+ {[%clk 0:00:18.6]} 67. Kd2 {[%clk 0:00:10.5]} 67... Rg5
{[%clk 0:00:18.1]} 68. Rc8 {[%clk 0:00:09.7]} 68... Bd5 {[%clk 0:00:18.2]} 69.
Rb8 {[%clk 0:00:08.9]} 69... Ke4 {[%clk 0:00:18.5]} 70. Rb4+ {[%clk 0:00:08.7]}
70... Nd4 {[%clk 0:00:19.2]} 71. Kc3 {[%clk 0:00:08.5]} 71... Rg3+ {[%clk
0:00:19.1]} 72. Kd2 {[%clk 0:00:08.8]} 72... Rg2+ {[%clk 0:00:19.3]} 73. Ke1
{[%clk 0:00:09.3]} 73... Ke3 {[%clk 0:00:18.4]} 74. Kf1 {[%clk 0:00:06.2]} 74...
Rf2+ {[%clk 0:00:18.7]} 75. Kg1 {[%clk 0:00:06.4]} 75... Ne2# {[%clk 0:00:18.8]}
0-1

[Event "Late-Titled-Tuesday-Blitz-April-16-2024"]
[Site "Chess.com"]
[Date "2024.04.16"]
[Round "4"]
[White "katharinareinecke"]
[Black "simaopdias"]
[Result "1-0"]
[WhiteElo "2020"]
[BlackElo "2244"]
[TimeControl "180+1"]
[EndTime "14:38:45 PDT"]
[Termination "katharinareinecke won by resignation"]

1. d4 {[%clk 0:03:00.9]} 1... Nf6 {[%clk 0:02:59.2]} 2. Nf3 {[%clk 0:03:00.1]}
2... d5 {[%clk 0:02:59.1]} 3. g3 {[%clk 0:02:56.3]} 3... e6 {[%clk 0:02:59.5]}
4. Bg2 {[%clk 0:02:54.1]} 4... Be7 {[%clk 0:03:00.4]} 5. O-O {[%clk 0:02:50.6]}
5... O-O {[%clk 0:03:01.3]} 6. c4 {[%clk 0:02:50.7]} 6... b6 {[%clk 0:03:02.2]}
7. cxd5 {[%clk 0:02:48.9]} 7... exd5 {[%clk 0:03:01.8]} 8. a3 {[%clk 0:02:46.4]}
8... h6 {[%clk 0:03:01.7]} 9. b4 {[%clk 0:02:46.3]} 9... Be6 {[%clk 0:03:01.5]}
10. Bb2 {[%clk 0:02:41.9]} 10... Nbd7 {[%clk 0:03:01.9]} 11. Nbd2 {[%clk
0:02:40.7]} 11... c5 {[%clk 0:03:01]} 12. dxc5 {[%clk 0:02:39.8]} 12... bxc5
{[%clk 0:03:01.9]} 13. b5 {[%clk 0:02:14.7]} 13... a6 {[%clk 0:02:59.2]} 14. a4
{[%clk 0:02:09.8]} 14... Qb6 {[%clk 0:02:55.5]} 15. Bxf6 {[%clk 0:01:35.2]}
15... Bxf6 {[%clk 0:02:54.4]} 16. Rb1 {[%clk 0:01:34.7]} 16... axb5 {[%clk
0:02:49.4]} 17. Rxb5 {[%clk 0:01:33.2]} 17... Qc6 {[%clk 0:02:48]} 18. e3 {[%clk
0:01:25.4]} 18... Bg4 {[%clk 0:02:42.6]} 19. Qb3 {[%clk 0:01:23.8]} 19... Rfb8
{[%clk 0:02:37.1]} 20. h3 {[%clk 0:01:16.8]} 20... Be6 {[%clk 0:02:29.6]} 21.
Qb1 {[%clk 0:01:01]} 21... Rb6 {[%clk 0:02:20.9]} 22. Rxb6 {[%clk 0:00:56.4]}
22... Nxb6 {[%clk 0:02:21.8]} 23. e4 {[%clk 0:00:48.7]} 23... d4 {[%clk
0:02:11.7]} 24. e5 {[%clk 0:00:45.6]} 24... Be7 {[%clk 0:02:11.7]} 25. Ng5
{[%clk 0:00:40.8]} 25... Qxg2+ {[%clk 0:01:37.7]} 26. Kxg2 {[%clk 0:00:39.5]}
26... Bxg5 {[%clk 0:01:33.8]} 27. Qxb6 {[%clk 0:00:38]} 27... Bxd2 {[%clk
0:01:32.4]} 28. Qxc5 {[%clk 0:00:36.2]} 28... Bc3 {[%clk 0:01:30.2]} 29. Rb1
{[%clk 0:00:24.7]} 29... Rxa4 {[%clk 0:01:28.9]} 30. Rb8+ {[%clk 0:00:21.9]}
30... Kh7 {[%clk 0:01:29.3]} 31. Qc6 {[%clk 0:00:18.3]} 31... Ra5 {[%clk
0:01:10.5]} 32. Qe8 {[%clk 0:00:14.9]} 32... Bd5+ {[%clk 0:01:09.3]} 33. Kh2
{[%clk 0:00:14.4]} 33... Ra1 {[%clk 0:01:04.9]} 34. g4 {[%clk 0:00:11.5]} 34...
d3 {[%clk 0:00:52.2]} 35. Qg8+ {[%clk 0:00:10.6]} 35... Kg6 {[%clk 0:00:52.1]}
36. Rb6+ {[%clk 0:00:10.8]} 36... Be6 {[%clk 0:00:50.1]} 37. Rxe6+ {[%clk
0:00:11.1]} 37... fxe6 {[%clk 0:00:49.5]} 38. Qxe6+ {[%clk 0:00:11.4]} 38... Kh7
{[%clk 0:00:49.3]} 39. Qf5+ {[%clk 0:00:11.8]} 39... Kh8 {[%clk 0:00:49.5]} 40.
Qf8+ {[%clk 0:00:11.8]} 40... Kh7 {[%clk 0:00:49.8]} 41. Qf5+ {[%clk 0:00:12.1]}
41... Kh8 {[%clk 0:00:50.3]} 42. Qc8+ {[%clk 0:00:12.3]} 42... Kh7 {[%clk
0:00:50.1]} 43. Qxc3 {[%clk 0:00:12.5]} 43... Rd1 {[%clk 0:00:48.8]} 44. Kg3
{[%clk 0:00:12.4]} 44... Kg6 {[%clk 0:00:48.6]} 45. Qc6+ {[%clk 0:00:10.8]}
45... Kh7 {[%clk 0:00:48.5]} 46. Qd6 {[%clk 0:00:10.9]} 46... d2 {[%clk
0:00:47.2]} 47. Kg2 {[%clk 0:00:11.5]} 47... Kh8 {[%clk 0:00:46.5]} 48. e6
{[%clk 0:00:11.9]} 48... Kh7 {[%clk 0:00:46.3]} 49. e7 {[%clk 0:00:12.4]} 49...
Re1 {[%clk 0:00:46.6]} 50. Qxd2 {[%clk 0:00:11.9]} 50... Rxe7 {[%clk 0:00:46.8]}
51. Qd3+ {[%clk 0:00:12.3]} 51... Kh8 {[%clk 0:00:46.7]} 52. f4 {[%clk
0:00:12.6]} 52... Ra7 {[%clk 0:00:44.7]} 53. Kg3 {[%clk 0:00:12]} 53... Kg8
{[%clk 0:00:43.6]} 54. h4 {[%clk 0:00:12]} 54... Re7 {[%clk 0:00:38.6]} 55. Qd8+
{[%clk 0:00:11.1]} 55... Kf7 {[%clk 0:00:38.7]} 56. Qd5+ {[%clk 0:00:09.9]}
56... Kf8 {[%clk 0:00:38.8]} 57. f5 {[%clk 0:00:10.2]} 57... Re3+ {[%clk
0:00:38.6]} 58. Kf4 {[%clk 0:00:10.4]} 58... Re7 {[%clk 0:00:39.5]} 59. g5
{[%clk 0:00:10]} 59... hxg5+ {[%clk 0:00:39.3]} 60. hxg5 {[%clk 0:00:10.9]}
60... Re8 {[%clk 0:00:38.6]} 61. g6 {[%clk 0:00:10.9]} 61... Re7 {[%clk
0:00:39.1]} 62. Qd8+ {[%clk 0:00:10.8]} 62... Re8 {[%clk 0:00:38.2]} 63. Qd6+
{[%clk 0:00:11.1]} 63... Re7 {[%clk 0:00:38.5]} 64. Qd5 {[%clk 0:00:10.4]} 64...
Ke8 {[%clk 0:00:37.9]} 65. Qg8+ {[%clk 0:00:09.8]} 65... Kd7 {[%clk 0:00:38.4]}
66. Kg5 {[%clk 0:00:10.3]} 66... Kd6 {[%clk 0:00:38.1]} 67. f6 {[%clk
0:00:08.6]} 67... Kd7 {[%clk 0:00:39]} 68. f7 {[%clk 0:00:08.5]} 68... Re5+
{[%clk 0:00:38.8]} 69. Kf4 {[%clk 0:00:08.5]} 69... Re1 {[%clk 0:00:36.6]} 70.
f8=Q {[%clk 0:00:08.3]} 70... Rf1+ {[%clk 0:00:36.6]} 71. Kg5 {[%clk 0:00:08.9]}
71... Rxf8 {[%clk 0:00:37]} 72. Qxf8 {[%clk 0:00:09.4]} 72... Ke6 {[%clk
0:00:37.3]} 73. Qxg7 {[%clk 0:00:09.8]} 73... Kd6 {[%clk 0:00:36.4]} 74. Qf7
{[%clk 0:00:10.3]} 1-0

[Event "Late-Titled-Tuesday-Blitz-April-16-2024"]
[Site "Chess.com"]
[Date "2024.04.16"]
[Round "4"]
[White "Abund"]
[Black "StellarChess"]
[Result "0-1"]
[WhiteElo "2800"]
[BlackElo "2683"]
[TimeControl "180+1"]
[EndTime "14:38:47 PDT"]
[Termination "StellarChess won by resignation"]

1. e4 {[%clk 0:03:00.9]} 1... e5 {[%clk 0:02:59.8]} 2. Nf3 {[%clk 0:03:01.2]}
2... Nc6 {[%clk 0:03:00.2]} 3. Bb5 {[%clk 0:03:00.4]} 3... Nge7 {[%clk
0:02:55.3]} 4. O-O {[%clk 0:02:59]} 4... g6 {[%clk 0:02:54.9]} 5. d4 {[%clk
0:02:51]} 5... exd4 {[%clk 0:02:54.9]} 6. Nxd4 {[%clk 0:02:51]} 6... Bg7 {[%clk
0:02:55.6]} 7. c3 {[%clk 0:02:40.4]} 7... a6 {[%clk 0:02:53]} 8. Be2 {[%clk
0:02:34.6]} 8... O-O {[%clk 0:02:50.7]} 9. Bg5 {[%clk 0:02:31.5]} 9... h6 {[%clk
0:02:43.9]} 10. Bh4 {[%clk 0:02:31.3]} 10... g5 {[%clk 0:02:38.6]} 11. Bg3
{[%clk 0:02:31.5]} 11... d5 {[%clk 0:02:34.1]} 12. Nxc6 {[%clk 0:02:24.9]} 12...
bxc6 {[%clk 0:02:32.2]} 13. exd5 {[%clk 0:02:03.3]} 13... cxd5 {[%clk
0:02:30.6]} 14. Nd2 {[%clk 0:02:02.1]} 14... Nf5 {[%clk 0:02:28.2]} 15. Nb3
{[%clk 0:01:58]} 15... Nxg3 {[%clk 0:02:27.3]} 16. fxg3 {[%clk 0:01:49.3]} 16...
a5 {[%clk 0:02:26.2]} 17. Bd3 {[%clk 0:01:44.7]} 17... a4 {[%clk 0:02:22.1]} 18.
Nd4 {[%clk 0:01:45.1]} 18... a3 {[%clk 0:02:16.3]} 19. b4 {[%clk 0:01:36.1]}
19... c5 {[%clk 0:02:00.8]} 20. bxc5 {[%clk 0:01:30.1]} 20... Qa5 {[%clk
0:01:58.6]} 21. Rc1 {[%clk 0:01:02.5]} 21... Qxc5 {[%clk 0:01:57]} 22. Bb1
{[%clk 0:01:02.3]} 22... Ba6 {[%clk 0:01:26.5]} 23. Rf2 {[%clk 0:00:55]} 23...
Rfe8 {[%clk 0:01:12.1]} 24. h3 {[%clk 0:00:41.2]} 24... Rac8 {[%clk 0:01:05.7]}
25. Qc2 {[%clk 0:00:34.7]} 25... Re4 {[%clk 0:00:52]} 26. Nb3 {[%clk 0:00:22.8]}
26... Qxc3 {[%clk 0:00:44.5]} 27. Qxc3 {[%clk 0:00:20.4]} 27... Rxc3 {[%clk
0:00:45.4]} 28. Bxe4 {[%clk 0:00:18.4]} 28... Rxc1+ {[%clk 0:00:36.8]} 29. Nxc1
{[%clk 0:00:18.8]} 29... dxe4 {[%clk 0:00:37.7]} 30. Rc2 {[%clk 0:00:18.2]}
30... Bd4+ {[%clk 0:00:34.6]} 31. Kh2 {[%clk 0:00:18]} 31... Bb2 {[%clk
0:00:30.9]} 32. g4 {[%clk 0:00:14.7]} 32... Kg7 {[%clk 0:00:29.1]} 33. Ne2
{[%clk 0:00:14.3]} 33... Bd3 {[%clk 0:00:29.2]} 34. Rd2 {[%clk 0:00:14.1]} 34...
Kf6 {[%clk 0:00:28.3]} 35. Kg1 {[%clk 0:00:11.6]} 35... Ke5 {[%clk 0:00:26.8]}
36. Kf2 {[%clk 0:00:11.4]} 36... Bc4 {[%clk 0:00:24.8]} 37. Rc2 {[%clk
0:00:05.9]} 37... Bxa2 {[%clk 0:00:21.2]} 38. Rc5+ {[%clk 0:00:06.3]} 38... Kf6
{[%clk 0:00:19]} 39. Rb5 {[%clk 0:00:06.1]} 39... Be6 {[%clk 0:00:18]} 40. Ra5
{[%clk 0:00:03.3]} 40... a2 {[%clk 0:00:13.6]} 41. Ng3 {[%clk 0:00:03.8]} 41...
Kg7 {[%clk 0:00:10.7]} 42. Nxe4 {[%clk 0:00:04.2]} 42... a1=Q {[%clk 0:00:10.6]}
43. Rxa1 {[%clk 0:00:04.2]} 43... Bxa1 {[%clk 0:00:11.5]} 44. Ke2 {[%clk
0:00:03.9]} 44... Bd4 {[%clk 0:00:11.6]} 45. Ng3 {[%clk 0:00:03.7]} 45... Be5
{[%clk 0:00:11.9]} 46. Nh5+ {[%clk 0:00:02.9]} 46... Kg6 {[%clk 0:00:12]} 47.
Kf2 {[%clk 0:00:03.4]} 47... f5 {[%clk 0:00:12.3]} 48. Kf3 {[%clk 0:00:02.3]}
48... fxg4+ {[%clk 0:00:12.3]} 49. hxg4 {[%clk 0:00:03.2]} 49... Bd5+ {[%clk
0:00:11.3]} 50. Kf2 {[%clk 0:00:03.5]} 50... Kf7 {[%clk 0:00:11.4]} 51. Kf1
{[%clk 0:00:03.2]} 51... Ke6 {[%clk 0:00:11.9]} 52. Kf2 {[%clk 0:00:03.7]} 52...
Kd6 {[%clk 0:00:12.5]} 53. Ng3 {[%clk 0:00:04]} 53... Bxg3+ {[%clk 0:00:12.6]}
54. Kxg3 {[%clk 0:00:04.9]} 54... Ke5 {[%clk 0:00:13.5]} 55. Kh3 {[%clk
0:00:04.9]} 55... Kf4 {[%clk 0:00:12]} 56. g3+ {[%clk 0:00:05.5]} 56... Kf3
{[%clk 0:00:10.6]} 57. Kh2 {[%clk 0:00:06]} 57... Kxg4 {[%clk 0:00:11.2]} 58.
Kg1 {[%clk 0:00:06.5]} 58... Kxg3 {[%clk 0:00:10.4]} 59. Kf1 {[%clk 0:00:07.4]}
59... h5 {[%clk 0:00:10.9]} 60. Kg1 {[%clk 0:00:08.3]} 60... h4 {[%clk
0:00:11.6]} 61. Kf1 {[%clk 0:00:09.1]} 61... h3 {[%clk 0:00:12.3]} 62. Ke2
{[%clk 0:00:09]} 62... h2 {[%clk 0:00:12.6]} 63. Ke3 {[%clk 0:00:09.4]} 63... g4
{[%clk 0:00:13.2]} 64. Kd2 {[%clk 0:00:10.3]} 64... h1=Q {[%clk 0:00:13.6]} 65.
Ke2 {[%clk 0:00:10.7]} 65... Qf3+ {[%clk 0:00:14.2]} 66. Ke1 {[%clk 0:00:11.4]}
66... Qg2 {[%clk 0:00:11.6]} 67. Kd1 {[%clk 0:00:11.7]} 67... Qf2 {[%clk
0:00:11.4]} 68. Kc1 {[%clk 0:00:12.1]} 68... Kf3 {[%clk 0:00:11.9]} 69. Kd1
{[%clk 0:00:11.4]} 69... g3 {[%clk 0:00:12.5]} 70. Kc1 {[%clk 0:00:11.5]} 70...
g2 {[%clk 0:00:13.1]} 0-1

[Event "Late-Titled-Tuesday-Blitz-April-16-2024"]
[Site "Chess.com"]
[Date "2024.04.16"]
[Round "4"]
[White "zverr1"]
[Black "balachess2006"]
[Result "1-0"]
[WhiteElo "2507"]
[BlackElo "2675"]
[TimeControl "180+1"]
[EndTime "14:38:47 PDT"]
[Termination "zverr1 won by resignation"]

1. e4 {[%clk 0:02:57]} 1... c5 {[%clk 0:02:59.8]} 2. Nf3 {[%clk 0:02:56.1]} 2...
Nc6 {[%clk 0:03:00]} 3. d4 {[%clk 0:02:55.9]} 3... cxd4 {[%clk 0:03:00.9]} 4.
Nxd4 {[%clk 0:02:56.7]} 4... Nf6 {[%clk 0:03:01]} 5. Nc3 {[%clk 0:02:57.4]} 5...
e5 {[%clk 0:03:01.3]} 6. Ndb5 {[%clk 0:02:58.1]} 6... d6 {[%clk 0:03:01.7]} 7.
Be3 {[%clk 0:02:58.9]} 7... a6 {[%clk 0:02:58.5]} 8. Na3 {[%clk 0:02:59.2]} 8...
b5 {[%clk 0:02:58.1]} 9. Nd5 {[%clk 0:02:59.6]} 9... Nxd5 {[%clk 0:02:45.3]} 10.
exd5 {[%clk 0:03:00.5]} 10... Ne7 {[%clk 0:02:45.4]} 11. c4 {[%clk 0:03:01.2]}
11... Nf5 {[%clk 0:02:45.6]} 12. Bd2 {[%clk 0:03:01.8]} 12... Be7 {[%clk
0:02:38.6]} 13. cxb5 {[%clk 0:03:00.5]} 13... O-O {[%clk 0:02:38.1]} 14. Be2
{[%clk 0:03:00.4]} 14... Nd4 {[%clk 0:02:36.4]} 15. Bd3 {[%clk 0:03:00.5]} 15...
Bb7 {[%clk 0:02:35.7]} 16. Bc4 {[%clk 0:02:56.9]} 16... axb5 {[%clk 0:02:32.5]}
17. Nxb5 {[%clk 0:02:56.1]} 17... Nxb5 {[%clk 0:02:32.6]} 18. Bxb5 {[%clk
0:02:57]} 18... Bxd5 {[%clk 0:02:33]} 19. O-O {[%clk 0:02:53.7]} 19... Qb6
{[%clk 0:02:32.8]} 20. a4 {[%clk 0:02:50.6]} 20... Qb7 {[%clk 0:02:32.8]} 21. f3
{[%clk 0:02:49]} 21... Rfc8 {[%clk 0:02:30.7]} 22. Be3 {[%clk 0:02:44.7]} 22...
Be6 {[%clk 0:02:29.9]} 23. Qd3 {[%clk 0:02:38.3]} 23... d5 {[%clk 0:02:28.7]}
24. Rfc1 {[%clk 0:02:33.5]} 24... d4 {[%clk 0:02:27.4]} 25. Bd2 {[%clk
0:02:31.6]} 25... Rxc1+ {[%clk 0:01:36.9]} 26. Rxc1 {[%clk 0:02:30.3]} 26... Rc8
{[%clk 0:01:37.3]} 27. a5 {[%clk 0:01:57.6]} 27... Rxc1+ {[%clk 0:01:24]} 28.
Bxc1 {[%clk 0:01:58.5]} 28... Qc8 {[%clk 0:01:22.4]} 29. Bd2 {[%clk 0:01:52.1]}
29... f5 {[%clk 0:01:22]} 30. a6 {[%clk 0:01:45]} 30... Bd5 {[%clk 0:01:21.1]}
31. b3 {[%clk 0:01:35]} 31... e4 {[%clk 0:01:18.3]} 32. Bc4 {[%clk 0:01:13.9]}
32... Bxc4 {[%clk 0:00:50.4]} 33. Qxc4+ {[%clk 0:01:07.9]} 33... Qxc4 {[%clk
0:00:50.1]} 34. bxc4 {[%clk 0:01:08.8]} 34... Bc5 {[%clk 0:00:50.5]} 35. fxe4
{[%clk 0:00:49.6]} 35... fxe4 {[%clk 0:00:48.7]} 36. Kf1 {[%clk 0:00:49.9]}
36... e3 {[%clk 0:00:46]} 37. Bb4 {[%clk 0:00:44]} 37... Ba7 {[%clk 0:00:29.2]}
38. Ke2 {[%clk 0:00:43.7]} 38... Kf7 {[%clk 0:00:29.2]} 39. Kd3 {[%clk
0:00:32.3]} 39... Ke6 {[%clk 0:00:28.5]} 40. Ke4 {[%clk 0:00:31.4]} 40... g6
{[%clk 0:00:23.1]} 41. c5 {[%clk 0:00:31.1]} 41... e2 {[%clk 0:00:19.3]} 42.
Kxd4 {[%clk 0:00:30.4]} 42... Kd7 {[%clk 0:00:18.3]} 43. Kd5 {[%clk 0:00:28.1]}
43... Kc7 {[%clk 0:00:14.8]} 44. Be1 {[%clk 0:00:27.6]} 44... Kd7 {[%clk
0:00:14.1]} 45. Bg3 {[%clk 0:00:26]} 45... Bb8 {[%clk 0:00:12.5]} 46. Bf2 {[%clk
0:00:22.8]} 46... Ba7 {[%clk 0:00:12.8]} 47. c6+ {[%clk 0:00:12.8]} 47... Kc7
{[%clk 0:00:10.3]} 48. Bg3+ {[%clk 0:00:12.5]} 48... Kc8 {[%clk 0:00:10.8]} 49.
Kc4 {[%clk 0:00:09.5]} 49... Bb8 {[%clk 0:00:10.3]} 50. Bf2 {[%clk 0:00:05.5]}
50... Ba7 {[%clk 0:00:10.4]} 51. Bg3 {[%clk 0:00:03.5]} 51... Bb8 {[%clk
0:00:08.4]} 52. Be1 {[%clk 0:00:04.2]} 52... Kc7 {[%clk 0:00:07.2]} 53. Kd3
{[%clk 0:00:04.4]} 53... Kxc6 {[%clk 0:00:07.6]} 54. Kxe2 {[%clk 0:00:03.3]}
54... Kb5 {[%clk 0:00:08.2]} 55. Bg3 {[%clk 0:00:02.1]} 55... Ba7 {[%clk
0:00:05.9]} 56. Bf2 {[%clk 0:00:02.3]} 56... Bxf2 {[%clk 0:00:05.9]} 57. Kxf2
{[%clk 0:00:02.4]} 57... Kxa6 {[%clk 0:00:06.8]} 58. Ke3 {[%clk 0:00:02.3]}
58... Kb6 {[%clk 0:00:07.3]} 59. Ke4 {[%clk 0:00:02.4]} 59... Kc6 {[%clk
0:00:07.1]} 60. Ke5 {[%clk 0:00:03]} 60... Kd7 {[%clk 0:00:06.7]} 61. Kf6 {[%clk
0:00:03.7]} 61... Kd6 {[%clk 0:00:06.4]} 62. Kg7 {[%clk 0:00:04.1]} 62... Ke5
{[%clk 0:00:07.2]} 63. Kxh7 {[%clk 0:00:04.7]} 63... g5 {[%clk 0:00:08.1]} 64.
Kg6 {[%clk 0:00:05.2]} 64... Kf4 {[%clk 0:00:08]} 65. Kh5 {[%clk 0:00:05.3]}
65... Kf5 {[%clk 0:00:08.4]} 66. g4+ {[%clk 0:00:04.8]} 66... Kf4 {[%clk
0:00:07.6]} 67. h3 {[%clk 0:00:05.5]} 1-0